fUSD/lending_fUSD_20260421
["ID","MTS","AMOUNT","RATE_DAILY","PERIOD"]
[420911251,1776712267724,-500.0,0.00024181,2]
[420911252,1776712267733,-500.0,0.00024181,2]
[420911253,1776712267743,-500.0,0.00024181,2]
[420911254,1776712267752,-500.0,0.00024181,2]
[420911255,1776712267761,-500.0,0.00024181,2]
[420911256,1776712267771,-500.0,0.00024181,2]
[420911257,1776712267781,-500.0,0.00024181,2]
[420911258,1776712267791,-500.0,0.00024181,2]
[420911259,1776712267800,-500.0,0.00024181,2]
[420911260,1776712267810,-500.0,0.00024181,2]
[420911261,1776712267820,-500.0,0.00024181,2]
[420911262,1776712267830,-500.0,0.00024181,2]
[420911263,1776712267840,-500.0,0.00024181,2]
[420911264,1776712267850,-500.0,0.00024181,2]
[420911265,1776712267859,-500.0,0.00024181,2]
[420911266,1776712267869,-500.0,0.00024181,2]
[420911267,1776712267879,-500.0,0.00024181,2]
[420911268,1776712267889,-500.0,0.00024181,2]
[420911269,1776712267900,-500.0,0.00024181,2]
[420911270,1776712267910,-500.0,0.00024181,2]
[420911271,1776712267920,-500.0,0.00024181,2]
[420911272,1776712267930,-500.0,0.00024181,2]
[420911273,1776712267940,-500.0,0.00024181,2]
[420911274,1776712267950,-500.0,0.00024181,2]
[420911275,1776712267960,-500.0,0.00024181,2]
[420911276,1776712267970,-500.0,0.00024181,2]
[420911277,1776712267980,-500.0,0.00024181,2]
[420911278,1776712267990,-500.0,0.00024181,2]
[420911279,1776712268000,-500.0,0.00024181,2]
[420911280,1776712268010,-500.0,0.00024181,2]
[420911281,1776712268020,-500.0,0.00024181,2]
[420911282,1776712268030,-500.0,0.00024181,2]
[420911283,1776712268040,-500.0,0.00024181,2]
[420911284,1776712268050,-500.0,0.00024181,2]
[420911285,1776712268061,-500.0,0.00024181,2]
[420911286,1776712268071,-500.0,0.00024181,2]
[420911287,1776712268081,-500.0,0.00024181,2]
[420911288,1776712268091,-500.0,0.00024181,2]
[420911289,1776712268101,-567.88867429,0.00024181,2]
[420911290,1776712268111,-927.0,0.00024181,2]
[420911291,1776712268120,-1219.0,0.00024181,2]
[420911292,1776712268130,-2474.0,0.00024181,2]
[420911293,1776712268139,-3780.0,0.00024181,2]
[420911294,1776712268148,-3209.782,0.00024188,2]
[420911295,1776712268158,-585.7,0.00024203,2]
[420911296,1776712268168,-566.04,0.00024203,2]
[420911297,1776712268178,-3737.72058428,0.0002421,2]
[420911298,1776712268188,-500.0,0.00024247,120]
[420911299,1776712268197,-13281.14735608,0.00024288,2]
[420911300,1776712268207,-491.75,0.000243,7]
[420911301,1776712268216,-237.8,0.00024357,60]
[420911302,1776712268225,-1026.59211923,0.0002463,2]
[420911303,1776712268235,-513.29605961,0.0002463,2]
[420911304,1776712268244,-256.64802981,0.0002463,2]
[420911305,1776712268253,-204.28937283,0.0002463,2]
[420911306,1776712268262,-196.55,0.0002463,2]
[420911307,1776712268272,-211.85490149,0.0002463,2]
[420911308,1776712268281,-1150.0,0.00024658,2]
[420911309,1776712268290,-1000.0,0.00024658,2]
[420911310,1776712268299,-622.81,0.00024658,2]
[420911311,1776712268308,-151.0,0.00024658,2]
[420911312,1776712268317,-151.0,0.00024658,2]
[420911313,1776712268326,-151.0,0.00024658,2]
[420911314,1776712268335,-151.0,0.00024658,2]
[420911315,1776712268345,-151.0,0.00024658,2]
[420911316,1776712268355,-151.0,0.00024658,2]
[420911317,1776712268364,-151.0,0.00024658,2]
[420911318,1776712268374,-151.0,0.00024658,2]
[420911319,1776712268383,-187.133723,0.00024658,2]
[420911320,1776712268392,-323.604907,0.00024658,2]
[420911321,1776712268402,-323.604907,0.00024658,2]
[420911322,1776712268411,-323.604907,0.00024658,2]
[420911323,1776712268420,-323.604907,0.00024658,2]
[420911324,1776712268429,-323.604907,0.00024658,2]
[420911325,1776712268439,-323.604907,0.00024658,2]
[420911326,1776712268448,-323.604907,0.00024658,2]
[420911327,1776712268458,-323.604907,0.00024658,2]
[420911328,1776712268467,-323.604907,0.00024658,2]
[420911329,1776712268476,-323.604907,0.00024658,2]
[420911330,1776712268486,-323.604907,0.00024658,2]
[420911331,1776712268496,-323.604907,0.00024658,2]
[420911332,1776712268505,-323.604907,0.00024658,2]
[420911333,1776712268515,-323.604907,0.00024658,2]
[420911334,1776712268524,-323.604907,0.00024658,2]
[420911335,1776712268534,-323.604907,0.00024658,2]
[420911336,1776712268543,-323.604907,0.00024658,2]
[420911337,1776712268553,-323.604907,0.00024658,2]
[420911338,1776712268562,-323.604907,0.00024658,2]
[420911339,1776712268571,-323.604909,0.00024658,2]
[420911340,1776712268581,-177.339461,0.00024658,2]
[420911341,1776712268591,-177.339461,0.00024658,2]
[420911342,1776712268600,-177.339461,0.00024658,2]
[420911343,1776712268611,-177.339461,0.00024658,2]
[420911344,1776712268621,-177.339461,0.00024658,2]
[420911345,1776712268630,-177.339461,0.00024658,2]
[420911346,1776712268640,-177.339461,0.00024658,2]
[420911347,1776712268649,-177.339461,0.00024658,2]
[420911348,1776712268660,-177.339461,0.00024658,2]
[420911349,1776712268670,-177.339461,0.00024658,2]
[420911350,1776712268679,-177.339461,0.00024658,2]
[420911351,1776712268689,-177.339461,0.00024658,2]
[420911352,1776712268699,-177.339461,0.00024658,2]
[420911353,1776712268709,-177.339461,0.00024658,2]
[420911354,1776712268718,-177.339461,0.00024658,2]
[420911355,1776712268728,-177.339461,0.00024658,2]
[420911356,1776712268737,-177.339461,0.00024658,2]
[420911357,1776712268747,-177.339461,0.00024658,2]
[420911358,1776712268756,-177.339461,0.00024658,2]
[420911359,1776712268766,-177.33947,0.00024658,2]
[420911360,1776712268775,-781.694536,0.00024658,2]
[420911361,1776712268784,-781.694536,0.00024658,2]
[420911362,1776712268794,-781.694536,0.00024658,2]
[420911363,1776712268803,-781.694536,0.00024658,2]
[420911364,1776712268813,-781.694536,0.00024658,2]
[420911365,1776712268823,-781.694536,0.00024658,2]
[420911366,1776712268833,-781.694536,0.00024658,2]
[420911367,1776712268842,-781.694536,0.00024658,2]
[420911368,1776712268851,-781.694536,0.00024658,2]
[420911369,1776712268860,-781.694536,0.00024658,2]
[420911370,1776712268870,-781.694536,0.00024658,2]
[420911371,1776712268879,-781.694536,0.00024658,2]
[420911372,1776712268889,-781.694536,0.00024658,2]
[420911373,1776712268898,-781.694536,0.00024658,2]
[420911374,1776712268907,-781.694536,0.00024658,2]
[420911375,1776712268917,-781.694536,0.00024658,2]
[420911376,1776712268927,-781.694536,0.00024658,2]
[420911377,1776712268937,-781.694536,0.00024658,2]
[420911378,1776712268946,-781.694536,0.00024658,2]
[420911379,1776712268956,-781.694526,0.00024658,2]
[420911380,1776712268966,-150.0,0.00024658,2]
[420911381,1776712268976,-505.0,0.00024767,11]
[420911382,1776712268985,-2740.0,0.00024813,3]
[420911383,1776712268995,-2487.17,0.00024822,2]
[420911384,1776712269004,-500.0,0.00024822,120]
[420911385,1776712269014,-709.0,0.00024855,7]
[420911386,1776712269024,-709.0,0.00024855,7]
[420911387,1776712269034,-568.11,0.00024867,2]
[420911388,1776712269045,-638.27,0.00024871,2]
[420911389,1776712269058,-638.27,0.00024871,2]
[420911390,1776712269067,-568.11,0.00024871,2]
[420911391,1776712269077,-638.27,0.00024871,2]
[420911392,1776712269087,-568.11,0.00024871,2]
[420911393,1776712269098,-183.38,0.00024871,2]
[420911394,1776712269107,-477.92,0.00024871,2]
[420911395,1776712269117,-570.35,0.00024872,2]
[420911396,1776712269128,-568.11,0.00024872,2]
[420911397,1776712269138,-183.38,0.00024873,2]
[420911398,1776712269148,-477.92,0.00024873,2]
[420911399,1776712269160,-183.38,0.00024873,2]
[420911400,1776712269170,-477.92,0.00024873,2]
[420911401,1776712269181,-183.38,0.00024873,2]
[420911402,1776712269195,-638.27,0.00024874,2]
[420911403,1776712269205,-183.38,0.00024874,2]
[420911404,1776712269217,-477.92,0.00024875,2]
[420911405,1776712269227,-332.33,0.00024875,2]
[420911406,1776712269238,-568.11,0.00024875,2]
[420911407,1776712269251,-332.33,0.00024875,2]
[420911408,1776712269264,-477.92,0.00024876,2]
[420911409,1776712269274,-332.33,0.0002488,2]
[420911410,1776712269285,-638.27,0.00024881,2]
[420911411,1776712269295,-638.27,0.00024881,2]
[420911412,1776712269305,-568.11,0.00024882,2]
[420911413,1776712269315,-570.35,0.00024882,2]
[420911414,1776712269325,-568.11,0.00024882,2]
[420911415,1776712269335,-570.35,0.00024885,2]
[420911416,1776712269345,-638.27,0.00024885,2]
[420911417,1776712269355,-477.92,0.00024885,2]
[420911418,1776712269370,-568.11,0.00024886,2]
[420911419,1776712269380,-477.94,0.00024886,2]
[420911420,1776712269390,-183.38,0.00024892,2]
[420911421,1776712269400,-585.7,0.00024899,2]
[420911422,1776712269410,-566.04,0.00024899,2]
[420911423,1776712269419,-14075.75403473,0.000249,2]
[420911424,1776712269538,-10250.56928562,0.000249,2]
[420911425,1776712271487,998.0,8.219e-05,2]
[420911426,1776712272249,998.0,8.219e-05,2]
[420911427,1776712272518,1016.40778139,8.219e-05,2]
[420911428,1776712272740,257.0,8.219e-05,2]
[420911429,1776712276742,150.0,8.22e-05,2]
[420911430,1776712342163,150.0,8.22e-05,2]
[420911431,1776712361502,9850.01,8.187e-05,2]
[420911432,1776712361529,10000.01,8.187e-05,2]
[420911433,1776712361558,10000.01,8.187e-05,2]
[420911434,1776712361586,10000.01,8.187e-05,2]
[420911435,1776712361614,10000.01,8.187e-05,2]
[420911436,1776712361641,10000.01,8.187e-05,2]
[420911437,1776712361668,10000.01,8.187e-05,2]
[420911438,1776712361695,10000.01,8.187e-05,2]
[420911439,1776712361722,10000.01,8.187e-05,2]
[420911440,1776712361748,10000.01,8.187e-05,2]
[420911441,1776712361783,535720.2556,8.187e-05,2]
[420911443,1776712388719,10000.01,7.945e-05,2]
[420911444,1776712388743,10000.01,7.945e-05,2]
[420911446,1776712388766,9929.718197,7.945e-05,2]
[420911448,1776712395968,70.291803,8.188e-05,2]
[420911449,1776712395993,9336.316197,8.188e-05,2]
[420911450,1776712405944,150.0,8.22e-05,2]
[420911451,1776712448216,153.719396,7.945e-05,2]
[420911452,1776712475402,150.0,8.22e-05,2]
[420911453,1776712503946,180.6946,8.187e-05,2]
[420911454,1776712541415,29.279807,8.22e-05,2]
[420911455,1776712541439,120.720193,8.22e-05,2]
[420911456,1776712610673,150.0,8.22e-05,2]
[420911457,1776712677037,150.0,8.22e-05,2]
[420911458,1776712742162,150.0,8.22e-05,2]
[420911459,1776712872225,150.0,8.22e-05,2]
[420911460,1776713003491,150.0,8.22e-05,2]
[420911461,1776713016301,-300.0,8.305e-05,2]
[420911462,1776713016322,-250.0,8.305e-05,2]
[420911463,1776713016343,-300.0,8.305e-05,2]
[420911464,1776713016364,-776.18501404,8.305e-05,2]
[420911465,1776713016385,-258.0,8.305e-05,2]
[420911466,1776713057681,-150.0,8.52e-05,2]
[420911474,1776713431798,-157.0,8.52e-05,2]
[420911475,1776713431808,-150.0,8.52e-05,2]
[420911476,1776713431818,-250.0,8.52e-05,2]
[420911477,1776713431828,-8279.674032,8.655e-05,2]
[420911478,1776713431837,-300.0,8.699e-05,2]
[420911479,1776713431847,-1200.0,8.699e-05,2]
[420911480,1776713431857,-8818.22285276,8.7e-05,2]
[420911481,1776713431867,-150.0,8.82e-05,2]
[420911482,1776713431876,-197.5,8.82e-05,2]
[420911483,1776713431886,-219.99,8.82e-05,2]
[420911484,1776713431896,-150.0,8.95e-05,2]
[420911485,1776713431905,-150.0,9.293e-05,2]
[420911486,1776713431915,-464.29,9.32e-05,2]
[420911487,1776713431924,-150.0,9.371e-05,2]
[420911488,1776713431933,-4605.1700681,9.372e-05,2]
[420911489,1776713431943,-195.52411365,9.372e-05,2]
[420911490,1776713431952,-300.0,9.372e-05,2]
[420911491,1776713431962,-250.0,9.372e-05,2]
[420911492,1776713431971,-300.0,9.372e-05,2]
[420911493,1776713431981,-162.41,9.471e-05,2]
[420911494,1776713431990,-1852.42,9.472e-05,2]
[420911495,1776713431999,-300.0,9.569e-05,2]
[420911496,1776713432010,-1680.0,9.569e-05,2]
[420911497,1776713432019,-1218.74,9.742e-05,2]
[420911498,1776713432029,-260.0,9.863e-05,2]
[420911499,1776713432038,-208.0,9.989e-05,2]
[420911500,1776713432047,-10854.63,0.00010064,2]
[420911501,1776713432057,-168.75,0.00010147,2]
[420911502,1776713432067,-182.82,0.00010147,2]
[420911503,1776713432076,-255.0,0.00010308,2]
[420911504,1776713432086,-210.94,0.00010413,2]
[420911505,1776713432097,-2351.0,0.00010526,2]
[420911506,1776713432107,-162.41,0.00010655,2]
[420911507,1776713432116,-253.13,0.00010679,2]
[420911508,1776713432126,-2285.858,0.00010899,2]
[420911509,1776713432135,-5325.8395,0.00010899,2]
[420911510,1776713432144,-2500.0,0.00010899,2]
[420911511,1776713432154,-1447.56490558,0.000109,2]
[420911512,1776713432163,-500.0,0.00010973,2]
[420911513,1776713432173,-165.26815384,0.00010973,2]
[420911514,1776713432182,-600.0,0.00010973,2]
[420911515,1776713432192,-502.10432319,0.00010973,2]
[420911516,1776713432201,-500.0,0.00010973,2]
[420911517,1776713432211,-500.0,0.00010973,2]
[420911518,1776713432220,-562.81492935,0.00010973,2]
[420911519,1776713432232,-500.0,0.00010973,2]
[420911520,1776713432241,-500.0,0.00010973,2]
[420911521,1776713432251,-500.0,0.00010998,2]
[420911522,1776713432260,-486.08441881,0.00010998,2]
[420911523,1776713432270,-186.02250563,0.00010998,2]
[420911524,1776713432279,-500.0,0.00010998,2]
[420911525,1776713432288,-500.0,0.00010998,2]
[420911526,1776713432298,-169.00821437,0.00010998,2]
[420911527,1776713432307,-500.0,0.00010998,2]
[420911528,1776713432317,-500.0,0.00010998,2]
[420911530,1776713432326,-195.46344795,0.00010998,2]
[420911532,1776713432336,-500.0,0.00010998,2]
[420911534,1776713432345,-23460.39155156,0.00010999,2]
[420911535,1776713434102,-380.0,0.00010999,2]
[420911536,1776713434125,-732.5,0.00010999,2]
[420911541,1776713438091,-354.10799906,0.00010999,2]
[420911542,1776713438104,-2123.75116919,0.00010999,2]
[420911543,1776713438307,-7904.62537552,0.00010999,2]
[420911544,1776713438363,-228086.5743259,0.00010999,2]
[420911595,1776713440138,-1690.5913692,0.00010999,2]
[420911596,1776713440150,-1211.0,0.00010999,2]
[420911597,1776713440161,-412.0,0.00010999,2]
[420911598,1776713440461,-963.42602351,0.00010999,2]
[420911599,1776713440520,-49390.57897649,0.00010999,2]
[420911600,1776713440530,-151.0,0.00011255,2]
[420911601,1776713440540,-240.74,0.00011266,2]
[420911602,1776713440549,-151.0,0.00011289,2]
[420911603,1776713440559,-1000.0,0.00011521,2]
[420911604,1776713440568,-1000.0,0.00011521,2]
[420911605,1776713440578,-420.0,0.00011578,2]
[420911606,1776713440587,-162.41,0.00011839,2]
[420911607,1776713440597,-1097.38105376,0.00012068,2]
[420911608,1776713440606,-250.0,0.00013,2]
[420911609,1776713440616,-162.41,0.00013023,2]
[420911610,1776713440625,-160.0,0.00013032,2]
[420911611,1776713440639,-260.0,0.00013153,2]
[420911612,1776713440649,-150.0,0.00013425,2]
[420911613,1776713440659,-150.0,0.00013425,2]
[420911614,1776713440668,-154.83276978,0.00013425,2]
[420911615,1776713440678,-151.05521271,0.00013425,2]
[420911616,1776713440688,-183.57,0.00013504,2]
[420911617,1776713440697,-1447.56490554,0.00013585,2]
[420911618,1776713440707,-500.0,0.00013698,2]
[420911619,1776713440716,-500.0,0.00013698,2]
[420911620,1776713440725,-544.05,0.00013698,2]
[420911622,1776713440738,-544.05,0.00013698,2]
[420911624,1776713440747,-1404.4,0.00013698,2]
[420911626,1776713440757,-1404.4,0.00013698,2]
[420911627,1776713440766,-500.0,0.00013698,2]
[420911630,1776713440776,-500.0,0.00013698,2]
[420911632,1776713440786,-500.0,0.00013698,2]
[420911634,1776713440795,-500.0,0.00013698,2]
[420911636,1776713440804,-500.0,0.00013698,2]
[420911637,1776713440814,-500.0,0.00013698,2]
[420911638,1776713440824,-1173.29,0.00013698,2]
[420911639,1776713440833,-1173.29,0.00013698,2]
[420911640,1776713440842,-500.0,0.00013698,2]
[420911641,1776713440852,-500.0,0.00013698,2]
[420911642,1776713440861,-500.0,0.00013698,2]
[420911643,1776713440870,-500.0,0.00013698,2]
[420911644,1776713440880,-500.0,0.00013698,2]
[420911645,1776713440889,-500.0,0.00013698,2]
[420911646,1776713440899,-633.29,0.00013698,2]
[420911647,1776713440909,-500.0,0.00013698,2]
[420911648,1776713440918,-500.0,0.00013698,2]
[420911649,1776713440927,-6663.71,0.00013699,2]
[420911650,1776713440937,-269.78183732,0.00013699,2]
[420911651,1776713440947,-787.08,0.00013699,2]
[420911652,1776713440956,-4130.790046,0.00013807,2]
[420911653,1776713440966,-1265.0,0.00013849,2]
[420911654,1776713440975,-1219.0,0.00013849,2]
[420911655,1776713440985,-927.0,0.00013849,2]
[420911656,1776713440994,-2474.0,0.00013849,2]
[420911657,1776713441004,-633.29,0.00013972,2]
[420911658,1776713441013,-787.08,0.00013973,2]
[420911659,1776713441022,-593.54833749,0.00014117,2]
[420911660,1776713441032,-162.41,0.00014207,2]
[420911661,1776713441041,-633.29,0.00014246,2]
[420911662,1776713441052,-787.66,0.00014247,2]
[420911663,1776713441061,-633.29,0.0001452,2]
[420911664,1776713441070,-633.29,0.00014794,2]
[420911665,1776713441079,-164.3,0.00014958,2]
[420911666,1776713441089,-300.0,0.00015,2]
[420911667,1776713441098,-987.36,0.00015068,2]
[420911668,1776713441107,-633.29,0.00015068,2]
[420911669,1776713441117,-525.08,0.00015068,2]
[420911670,1776713441126,-987.36,0.00015342,2]
[420911671,1776713441136,-633.29,0.00015342,2]
[420911672,1776713441156,-200.0,0.000155,2]
[420911673,1776713441166,-633.35,0.00015616,2]
[420911674,1776713441176,-200.0,0.000157,2]
[420911675,1776713441186,-1600.0,0.00015859,2]
[420911676,1776713441195,-164.3,0.00015866,2]
[420911677,1776713441205,-500.0,0.0001589,2]
[420911678,1776713441214,-500.0,0.0001589,2]
[420911679,1776713441224,-150.0,0.000159,2]
[420911680,1776713441234,-150.22138901,0.000159,2]
[420911681,1776713441244,-150.0,0.000159,2]
[420911682,1776713441253,-150.0,0.000159,2]
[420911683,1776713441263,-260.0,0.00016122,2]
[420911684,1776713441272,-150.0,0.00016137,2]
[420911685,1776713441282,-1447.56490554,0.00016271,2]
[420911686,1776713441291,-314.7,0.00016438,2]
[420911687,1776713441301,-525.08,0.00016438,2]
[420911688,1776713441310,-2000.0,0.0001652,2]
[420911689,1776713441319,-2000.0,0.0001652,2]
[420911690,1776713441329,-2000.0,0.0001652,2]
[420911691,1776713441338,-2000.0,0.0001652,2]
[420911692,1776713441348,-2000.0,0.0001652,2]
[420911693,1776713441358,-921.7038445,0.00016591,2]
[420911694,1776713441368,-2000.0,0.0001662,2]
[420911695,1776713441377,-1544.99632809,0.0001662,2]
[420911696,1776713441391,-455.00367191,0.0001662,2]
[420911697,1776713441401,-2000.0,0.0001662,2]
[420911698,1776713441410,-1538.22227948,0.0001662,2]
[420911699,1776713441422,-461.77772052,0.0001662,2]
[420911700,1776713441432,-2000.0,0.0001662,2]
[420911701,1776713441441,-2000.0,0.0001662,2]
[420911702,1776713441451,-2000.0,0.0001662,2]
[420911703,1776713441460,-164.3,0.00016775,7]
[420911704,1776713441470,-1265.0,0.00016849,2]
[420911705,1776713441479,-1219.0,0.00016849,2]
[420911706,1776713441488,-656.903,0.00016849,2]
[420911707,1776713441498,-1088.128,0.00016849,2]
[420911708,1776713441507,-350.0,0.00017,2]
[420911709,1776713441516,-500.0,0.00017165,2]
[420911710,1776713441526,-500.0,0.00017165,2]
[420911711,1776713441535,-2500.0,0.00017165,2]
[420911712,1776713441550,-2500.0,0.00017165,2]
[420911713,1776713441560,-2500.0,0.00017165,2]
[420911714,1776713441569,-205.6599264,0.00017212,2]
[420911715,1776713441579,-201.47644713,0.000175,5]
[420911716,1776713441589,-314.7,0.00017535,2]
[420911717,1776713441598,-164.3,0.00017683,7]
[420911718,1776713441608,-1600.0,0.00017842,2]
[420911719,1776713441618,-1000.0,0.000179,2]
[420911720,1776713441627,-913.36529135,0.000179,6]
[420911730,1776713446246,-20100.22222643,0.00010799,2]
[420911731,1776713446258,-5800.849,0.00010799,2]
[420911732,1776713446315,-8213.35696041,0.00010799,2]
[420911733,1776713446327,-8254.76554038,0.00010799,2]
[420911734,1776713446361,-1375.66364796,0.00010799,2]
[420911735,1776713446372,-266.180693,0.00010799,2]
[420911736,1776713446384,-31000.58253182,0.00010799,2]
[420911737,1776713446393,-500.0,0.00013698,2]
[420911738,1776713446402,-500.0,0.00013698,2]
[420911739,1776713446411,-500.0,0.00013698,2]
[420911740,1776713446421,-500.0,0.00013698,2]
[420911741,1776713446430,-3529.0,0.00013849,2]
[420911742,1776713446440,-590.55340354,0.00016849,2]
[420911743,1776713446449,-1380.994,0.00016849,2]
[420911744,1776713446458,-1011.53432689,0.00017542,2]
[420911745,1776713446467,-1053.4665792,0.00017542,2]
[420911746,1776713446477,-1083.98635241,0.00017542,2]
[420911747,1776713446486,-286.63470865,0.000179,6]
[420911748,1776713446496,-1594.86343261,0.00018,2]
[420911750,1776713446506,-894.73059572,0.00018,2]
[420911751,1776713446515,-1594.86343261,0.000182,2]
[420911752,1776713446525,-894.73059572,0.000182,2]
[420911753,1776713446534,-1594.86343261,0.000184,2]
[420911754,1776713446544,-894.73059572,0.000184,2]
[420911755,1776713446553,-161.99,0.00018426,2]
[420911757,1776713446562,-161.99,0.00018428,2]
[420911759,1776713446571,-1594.86343261,0.000185,2]
[420911760,1776713446580,-894.73059572,0.000185,2]
[420911761,1776713446589,-164.3,0.00018592,7]
[420911762,1776713446599,-314.7,0.00018631,2]
[420911763,1776713446608,-1594.86343261,0.000187,2]
[420911764,1776713446617,-894.73059572,0.000187,2]
[420911765,1776713446626,-500.0,0.0001874,2]
[420911766,1776713446635,-500.0,0.0001874,2]
[420911767,1776713446645,-500.0,0.0001874,2]
[420911768,1776713446654,-500.0,0.0001874,2]
[420911769,1776713446663,-260.0,0.00018799,2]
[420911770,1776713446673,-1447.56490554,0.00018957,2]
[420911772,1776713446683,-400.0,0.00019,2]
[420911773,1776713446691,-250.0,0.00019177,2]
[420911774,1776713446701,-154.0,0.00019288,5]
[420911775,1776713446710,-700.79800378,0.00019288,2]
[420911776,1776713446719,-1000.0,0.00019288,2]
[420911777,1776713446729,-1000.0,0.00019288,2]
[420911780,1776713446738,-1000.0,0.00019288,2]
[420911782,1776713446747,-180.11953942,0.0001936,2]
[420911784,1776713446757,-164.35,0.000195,7]
[420911786,1776713446766,-314.7,0.00019728,2]
[420911788,1776713446775,-201.68,0.00019768,7]
[420911790,1776713446785,-1600.0,0.00019824,2]
[420911793,1776713446794,-1000.0,0.00019836,2]
[420911796,1776713446803,-1000.0,0.00019836,2]
[420911797,1776713446812,-1000.0,0.00019836,2]
[420911800,1776713447233,-1265.0,0.00019849,2]
[420911801,1776713447249,-1218.0,0.00019849,2]
[420911802,1776713447258,-518.0,0.0002,2]
[420911803,1776713447268,-210.0,0.0002,2]
[420911804,1776713447277,-845.0,0.0002,2]
[420911805,1776713447287,-211.9,0.0002,2]
[420911806,1776713447296,-1825.0,0.0002,2]
[420911807,1776713447305,-1500.0,0.0002,2]
[420911808,1776713447315,-411.0,0.0002,2]
[420911809,1776713447324,-294.0,0.0002,2]
[420911810,1776713447333,-1919.0,0.0002,2]
[420911811,1776713447343,-626.0,0.0002,2]
[420911812,1776713447352,-536.0,0.0002,2]
[420911813,1776713447361,-297.25,0.0002,30]
[420911814,1776713447371,-192.86,0.0002,2]
[420911815,1776713447380,-2000.0,0.000201,2]
[420911816,1776713447389,-798.0,0.00020129,7]
[420911817,1776713447398,-571.0,0.00020129,7]
[420911818,1776713447407,-1186.0,0.00020129,7]
[420911819,1776713447416,-183.57,0.00020257,2]
[420911820,1776713447425,-2915.3,0.00020354,2]
[420911821,1776713447435,-227.0,0.00020784,5]
[420911822,1776713447443,-314.7,0.00020824,2]
[420911823,1776713447453,-518.0,0.00021,2]
[420911824,1776713447462,-210.0,0.00021,2]
[420911825,1776713447472,-845.0,0.00021,2]
[420911826,1776713447481,-1825.0,0.00021,2]
[420911827,1776713447491,-1500.0,0.00021,2]
[420911828,1776713447500,-411.0,0.00021,2]
[420911829,1776713447509,-294.0,0.00021,2]
[420911830,1776713447519,-1919.0,0.00021,2]
[420911831,1776713447528,-626.0,0.00021,2]
[420911832,1776713447537,-536.0,0.00021,2]
[420911833,1776713447547,-3354.605,0.00021181,2]
[420911834,1776713447556,-251.327,0.00021181,2]
[420911835,1776713447565,-1576.0,0.0002119,2]
[420911836,1776713447575,-260.0,0.00021214,3]
[420911837,1776713447584,-239.6,0.00021341,2]
[420911838,1776713447593,-164.32,0.0002145,7]
[420911839,1776713447602,-1447.56490554,0.00021642,2]
[420911840,1776713447611,-3302.18182265,0.00021757,2]
[420911841,1776713447665,-6697.80817735,0.00021757,2]
[420911842,1776713447675,-1600.0,0.00021807,2]
[420911843,1776713447685,-5000.0,0.000219,2]
[420911844,1776713447695,-500.0,0.00021917,2]
[420911845,1776713447704,-544.05,0.00021917,2]
[420911846,1776713447713,-1404.4,0.00021917,2]
[420911847,1776713447723,-500.0,0.00021917,2]
[420911848,1776713447732,-500.0,0.00021917,2]
[420911849,1776713447741,-500.0,0.00021917,2]
[420911850,1776713447751,-1173.29,0.00021917,2]
[420911851,1776713447760,-500.0,0.00021917,2]